fUSD/lending_fUSD_20260614
["ID","MTS","AMOUNT","RATE_DAILY","PERIOD"]
[425067871,1781447614000,-150.0,0.00037465,120]
[425067868,1781447614000,-5000.0,0.00037449,7]
[425067862,1781447614000,-1995.0,0.00037397,30]
[425067863,1781447614000,-5000.0,0.00037429,7]
[425067879,1781447614000,-800.0,0.000375,7]
[425067869,1781447614000,-150.0,0.00037449,2]
[425067877,1781447614000,-800.0,0.000375,7]
[425067884,1781447614000,-20000.0,0.000375,10]
[425067875,1781447614000,-171651.41491164,0.000375,2]
[425067873,1781447614000,-47439.8850359,0.00037472,2]
[425067872,1781447614000,-350.0,0.00037466,2]
[425067883,1781447614000,-800.0,0.000375,7]
[425067874,1781447614000,-300.0,0.00037493,2]
[425067880,1781447614000,-800.0,0.000375,7]
[425067878,1781447614000,-800.0,0.000375,7]
[425067881,1781447614000,-800.0,0.000375,7]
[425067882,1781447614000,-800.0,0.000375,7]
[425067887,1781447614000,-100000.0,0.000375,13]
[425067886,1781447614000,-100000.0,0.000375,12]
[425067860,1781447614000,-3000.0,0.00037397,30]
[425067876,1781447614000,-800.0,0.000375,7]
[425067861,1781447614000,-3000.0,0.00037397,30]
[425067834,1781447614000,-558.26467095,0.0003738,30]
[425067859,1781447614000,-3000.0,0.00037397,30]
[425067832,1781447614000,-1704.17636394,0.0003738,30]
[425067833,1781447614000,-455.72626199,0.0003738,120]
[425067835,1781447614000,-5000.0,0.00037381,7]
[425067831,1781447614000,-1391.16437873,0.0003738,120]
[425067848,1781447614000,-150.0,0.00037396,7]
[425067847,1781447614000,-150.0,0.00037396,7]
[425067837,1781447614000,-150.0,0.00037396,7]
[425067845,1781447614000,-150.0,0.00037396,7]
[425067836,1781447614000,-150.0,0.00037396,7]
[425067846,1781447614000,-150.0,0.00037396,7]
[425067838,1781447614000,-150.0,0.00037396,7]
[425067840,1781447614000,-150.0,0.00037396,7]
[425067856,1781447614000,-1330.0,0.00037397,30]
[425067839,1781447614000,-150.0,0.00037396,7]
[425067841,1781447614000,-150.0,0.00037396,7]
[425067844,1781447614000,-150.0,0.00037396,7]
[425067843,1781447614000,-150.0,0.00037396,7]
[425067853,1781447614000,-3000.0,0.00037397,30]
[425067854,1781447614000,-3000.0,0.00037397,30]
[425067849,1781447614000,-150.0,0.00037396,7]
[425067855,1781447614000,-3000.0,0.00037397,30]
[425067850,1781447614000,-211.4092588,0.00037396,7]
[425067851,1781447614000,-3000.0,0.00037397,30]
[425067852,1781447614000,-3000.0,0.00037397,30]
[425067858,1781447614000,-3000.0,0.00037397,30]
[425067857,1781447614000,-3000.0,0.00037397,30]
[425067842,1781447614000,-150.0,0.00037396,7]
[425067885,1781447614000,-100000.0,0.000375,11]
[425067902,1781447614000,-150.0,0.00037558,10]
[425067888,1781447614000,-100000.0,0.000375,10]
[425067921,1781447614000,-150.0,0.0003758,120]
[425067922,1781447614000,-150.0,0.0003758,120]
[425067923,1781447614000,-313.0,0.0003758,120]
[425067924,1781447614000,-313.0,0.0003758,120]
[425067926,1781447614000,-5000.0,0.00037587,7]
[425067925,1781447614000,-313.0,0.0003758,120]
[425067927,1781447614000,-4423.69933502,0.0003759,2]
[425067928,1781447614000,-737.36096119,0.00037595,120]
[425067929,1781447614000,-152.0,0.00037595,4]
[425067935,1781447614000,-5083.65,0.00037655,7]
[425067939,1781447614000,-349.52,0.0003767,120]
[425067936,1781447614000,-3729.99,0.00037657,2]
[425067920,1781447614000,-230.0,0.00037558,10]
[425067930,1781447614000,-252.77714291,0.00037595,5]
[425067937,1781447614000,-1397.02,0.0003767,120]
[425067932,1781447614000,-678.88264826,0.00037623,2]
[425067938,1781447614000,-2000.0,0.0003767,120]
[425067934,1781447614000,-9338.98,0.00037655,7]
[425067931,1781447614000,-500.1,0.00037621,31]
[425067940,1781447614000,-235.39,0.0003767,120]
[425067941,1781447614000,-555.41,0.0003769,12]
[425067942,1781447614000,-150.0,0.00037694,2]
[425067945,1781447614000,-559.50005446,0.0003772,60]
[425067943,1781447614000,-8248.0,0.000377,117]
[425067944,1781447614000,-1400.3030448,0.00037716,30]
[425067891,1781447614000,-5000.0,0.00037518,7]
[425067933,1781447614000,-6349.23,0.00037655,2]
[425067919,1781447614000,-150.0,0.00037558,10]
[425067900,1781447614000,-1228.0,0.00037549,2]
[425067915,1781447614000,-150.0,0.00037558,10]
[425067890,1781447614000,-400.0,0.000375,120]
[425067893,1781447614000,-500.0,0.00037534,120]
[425067892,1781447614000,-2000.0,0.00037521,120]
[425067894,1781447614000,-2000.0,0.00037534,2]
[425067905,1781447614000,-150.0,0.00037558,10]
[425067896,1781447614000,-1732.37048954,0.00037539,5]
[425067901,1781447614000,-153.21398275,0.00037558,60]
[425067895,1781447614000,-1000.0,0.00037534,8]
[425067898,1781447614000,-1275.0,0.00037549,2]
[425067899,1781447614000,-631.0,0.00037549,2]
[425067904,1781447614000,-150.0,0.00037558,10]
[425067897,1781447614000,-5000.0,0.00037542,7]
[425067889,1781447614000,-4049.3268424,0.000375,60]
[425067906,1781447614000,-150.0,0.00037558,10]
[425067911,1781447614000,-150.0,0.00037558,10]
[425067910,1781447614000,-150.0,0.00037558,10]
[425067913,1781447614000,-150.0,0.00037558,10]
[425067912,1781447614000,-150.0,0.00037558,10]
[425067916,1781447614000,-150.0,0.00037558,10]
[425067914,1781447614000,-150.0,0.00037558,10]
[425067918,1781447614000,-150.0,0.00037558,10]
[425067909,1781447614000,-150.0,0.00037558,10]
[425067907,1781447614000,-150.0,0.00037558,10]
[425067908,1781447614000,-150.0,0.00037558,10]
[425067903,1781447614000,-150.0,0.00037558,10]
[425067917,1781447614000,-150.0,0.00037558,10]
[425067990,1781447615000,-5000.0,0.00037947,2]
[425067988,1781447615000,-5000.0,0.00037933,7]
[425067983,1781447615000,-175.99838716,0.00037908,60]
[425067982,1781447615000,-5000.0,0.000379,2]
[425067985,1781447615000,-5000.0,0.00037925,2]
[425067978,1781447615000,-206.20942529,0.0003788,2]
[425067980,1781447615000,-150.0,0.00037891,2]
[425067979,1781447615000,-150.0,0.00037891,2]
[425067984,1781447615000,-5000.0,0.00037924,2]
[425067986,1781447615000,-207.25,0.00037926,60]
[425067991,1781447615000,-5000.0,0.00037957,7]
[425067981,1781447615000,-150.0,0.00037891,2]
[425067989,1781447615000,-5000.0,0.00037945,7]
[425067994,1781447615000,-250.0,0.00037973,48]
[425067999,1781447615000,-3541.1662657,0.00037992,2]
[425067995,1781447615000,-424.15257884,0.00037975,7]
[425067998,1781447615000,-250.0,0.00037992,7]
[425067992,1781447615000,-5000.0,0.0003797,7]
[425067993,1781447615000,-5000.0,0.0003797,2]
[425067976,1781447615000,-207.25,0.00037876,60]
[425067997,1781447615000,-5000.0,0.00037982,7]
[425068001,1781447615000,-1375.2395228,0.00037992,120]
[425068002,1781447615000,-2471.92441204,0.00037992,120]
[425068011,1781447615000,-5000.0,0.00037995,7]
[425068000,1781447615000,-4943.84882408,0.00037992,120]
[425068003,1781447615000,-687.6197614,0.00037992,120]
[425068006,1781447615000,-617.98110301,0.00037992,120]
[425067996,1781447615000,-207.25,0.00037976,60]
[425067987,1781447615000,-559.50005446,0.0003793,60]
[425067970,1781447615000,-214.55542187,0.00037823,120]
[425067971,1781447615000,-25079.43204777,0.00037824,30]
[425067949,1781447615000,-20000.0,0.00037755,15]
[425067950,1781447615000,-430.58,0.00037765,120]
[425067948,1781447615000,-10000.0,0.00037755,15]
[425067947,1781447615000,-158.24269055,0.0003773,2]
[425067946,1781447615000,-207.25,0.00037726,60]
[425067963,1781447615000,-5000.0,0.00037807,2]
[425067952,1781447615000,-207.25,0.00037776,60]
[425067954,1781447615000,-274.383276,0.000378,7]
[425067960,1781447615000,-629.220199,0.000378,25]
[425067956,1781447615000,-259.383274,0.000378,7]
[425067962,1781447615000,-180.91,0.00037806,30]
[425067953,1781447615000,-230.45522796,0.0003779,7]
[425067957,1781447615000,-274.383275,0.000378,14]
[425067955,1781447615000,-262.383274,0.000378,7]
[425067958,1781447615000,-262.383274,0.000378,14]
[425067961,1781447615000,-302.98694117,0.00037804,14]
[425067965,1781447615000,-154.37,0.00037808,60]
[425067973,1781447615000,-5000.0,0.0003783,2]
[425067967,1781447615000,-2000.0,0.00037808,2]
[425067975,1781447615000,-2110.0,0.00037856,2]
[425067968,1781447615000,-1000.0,0.00037808,8]
[425067972,1781447615000,-207.25,0.00037826,60]
[425067966,1781447615000,-500.0,0.00037808,120]
[425068008,1781447615000,-308.9905515,0.00037992,120]
[425067964,1781447615000,-1613.99,0.00037807,7]
[425067974,1781447615000,-5000.0,0.00037854,2]
[425067969,1781447615000,-212.82135112,0.00037823,120]
[425067977,1781447615000,-5000.0,0.00037877,2]
[425068004,1781447615000,-1235.96220602,0.00037992,120]
[425067951,1781447615000,-189.85,0.00037765,120]
[425068009,1781447615000,-171.90494034,0.00037992,120]
[425068050,1781447615000,-151.0,0.00037996,2]
[425068039,1781447615000,-151.0,0.00037996,2]
[425068040,1781447615000,-151.0,0.00037996,2]
[425068042,1781447615000,-151.0,0.00037996,2]
[425068046,1781447615000,-185.46,0.00037996,2]
[425068048,1781447615000,-396.16,0.00037996,2]
[425068043,1781447615000,-225.67,0.00037996,2]
[425068047,1781447615000,-573.29,0.00037996,2]
[425068045,1781447615000,-151.0,0.00037996,2]
[425068052,1781447615000,-151.49,0.00037996,2]
[425068063,1781447615000,-14752.62300835,0.00038,20]
[425068062,1781447615000,-1990.18260781,0.00038,14]
[425068051,1781447615000,-151.0,0.00037996,2]
[425068049,1781447615000,-151.0,0.00037996,2]
[425068053,1781447615000,-151.0,0.00037996,2]
[425068060,1781447615000,-1500.0,0.00038,30]
[425068058,1781447615000,-7098.67862995,0.00037996,120]
[425068056,1781447615000,-151.0,0.00037996,2]
[425068055,1781447615000,-571.45,0.00037996,2]
[425068059,1781447615000,-498.58044026,0.00037996,120]
[425068057,1781447615000,-201.54,0.00037996,30]
[425068061,1781447615000,-1990.18260781,0.00038,14]
[425068064,1781447615000,-2642935.90910041,0.00038,7]
[425068066,1781447615000,-500.0,0.00038,13]
[425068067,1781447615000,-500.0,0.00038,13]
[425068068,1781447615000,-1517.4418875,0.00038,14]
[425068065,1781447615000,-5000.0,0.00038,5]
[425068005,1781447615000,-343.8098807,0.00037992,120]
[425068054,1781447615000,-573.4,0.00037996,2]
[425068044,1781447615000,-185.13,0.00037996,2]
[425067959,1781447615000,-259.383274,0.000378,14]
[425068041,1781447615000,-151.0,0.00037996,2]
[425068010,1781447615000,-5000.0,0.00037994,2]
[425068038,1781447615000,-151.0,0.00037996,2]
[425068021,1781447615000,-384.5,0.00037996,2]
[425068012,1781447615000,-366.14,0.00037996,30]
[425068022,1781447615000,-573.4,0.00037996,2]
[425068019,1781447615000,-573.4,0.00037996,2]
[425068015,1781447615000,-482.28,0.00037996,2]
[425068014,1781447615000,-185.13,0.00037996,2]
[425068017,1781447615000,-573.4,0.00037996,2]
[425068020,1781447615000,-151.0,0.00037996,2]
[425068013,1781447615000,-549.21,0.00037996,120]
[425068018,1781447615000,-246.6,0.00037996,2]
[425068016,1781447615000,-151.0,0.00037996,2]
[425068024,1781447615000,-623.91,0.00037996,2]
[425068007,1781447615000,-171.90494035,0.00037992,120]
[425068026,1781447615000,-573.4,0.00037996,2]
[425068023,1781447615000,-573.4,0.00037996,2]
[425068031,1781447615000,-152.73,0.00037996,2]
[425068033,1781447615000,-572.97,0.00037996,2]
[425068030,1781447615000,-573.4,0.00037996,2]
[425068032,1781447615000,-573.4,0.00037996,2]
[425068025,1781447615000,-151.0,0.00037996,2]
[425068034,1781447615000,-644.05,0.00037996,2]
[425068029,1781447615000,-151.0,0.00037996,2]
[425068027,1781447615000,-151.0,0.00037996,2]
[425068036,1781447615000,-396.17,0.00037996,2]
[425068037,1781447615000,-576.99,0.00037996,2]
[425068028,1781447615000,-573.4,0.00037996,2]
[425068035,1781447615000,-184.3,0.00037996,2]
[425068106,1781447616000,-700.0,0.00038027,8]
[425068110,1781447616000,-700.0,0.00038027,8]
[425068104,1781447616000,-700.0,0.00038027,8]
[425068105,1781447616000,-700.0,0.00038027,8]
[425068112,1781447616000,-700.0,0.00038027,8]
[425068103,1781447616000,-700.0,0.00038027,8]
[425068102,1781447616000,-207.25,0.00038026,60]
[425068100,1781447616000,-188.328485,0.00038018,2]
[425068109,1781447616000,-700.0,0.00038027,8]
[425068111,1781447616000,-700.0,0.00038027,8]
[425068108,1781447616000,-700.0,0.00038027,8]
[425068107,1781447616000,-700.0,0.00038027,8]
[425068118,1781447616000,-700.0,0.00038027,8]
[425068113,1781447616000,-700.0,0.00038027,8]
[425068120,1781447616000,-700.0,0.00038027,8]
[425068116,1781447616000,-700.0,0.00038027,8]
[425068119,1781447616000,-700.0,0.00038027,8]
[425068115,1781447616000,-700.0,0.00038027,8]
[425068117,1781447616000,-700.0,0.00038027,8]
[425068121,1781447616000,-700.0,0.00038027,8]
[425068122,1781447616000,-700.0,0.00038027,8]
[425068123,1781447616000,-700.0,0.00038027,8]
[425068135,1781447616000,-700.0,0.00038027,8]
[425068101,1781447616000,-5000.0,0.00038019,7]
[425068124,1781447616000,-700.0,0.00038027,8]
[425068114,1781447616000,-700.0,0.00038027,8]
[425068089,1781447616000,-1033969.15726296,0.00038,120]
[425068076,1781447616000,-11543.89070529,0.00038,7]
[425068095,1781447616000,-86752.87012828,0.00038,30]
[425068069,1781447616000,-10000.0,0.00038,120]
[425068070,1781447616000,-250.0,0.00038,7]
[425068073,1781447616000,-487.96,0.00038,13]
[425068072,1781447616000,-500.0,0.00038,13]
[425068075,1781447616000,-2228.54,0.00038,5]
[425068074,1781447616000,-7580.49466981,0.00038,2]
[425068071,1781447616000,-500.0,0.00038,13]
[425068077,1781447616000,-100000.0,0.00038,20]
[425068086,1781447616000,-203.47531,0.00038,7]
[425068087,1781447616000,-6264.94866299,0.00038,20]
[425068084,1781447616000,-800.0,0.00038,7]
[425068082,1781447616000,-800.0,0.00038,7]
[425068078,1781447616000,-800.0,0.00038,7]
[425068098,1781447616000,-5000.0,0.00038007,7]
[425068083,1781447616000,-800.0,0.00038,7]
[425068080,1781447616000,-800.0,0.00038,7]
[425068125,1781447616000,-700.0,0.00038027,8]
[425068081,1781447616000,-16141.0310082,0.00038,20]
[425068085,1781447616000,-800.0,0.00038,7]
[425068091,1781447616000,-151.0,0.00038,120]
[425068093,1781447616000,-252.05,0.00038,120]
[425068096,1781447616000,-158.24269055,0.00038004,2]
[425068099,1781447616000,-220.42,0.00038017,2]
[425068088,1781447616000,-10176.28593648,0.00038,7]
[425068094,1781447616000,-1300.0,0.00038,7]
[425068097,1781447616000,-150.0,0.00038005,6]
[425068090,1781447616000,-502.40609097,0.00038,30]
[425068092,1781447616000,-152.0,0.00038,120]
[425068079,1781447616000,-800.0,0.00038,7]
[425068136,1781447616000,-700.0,0.00038027,8]
[425068133,1781447616000,-700.0,0.00038027,8]
[425068128,1781447616000,-700.0,0.00038027,8]
[425068162,1781447616000,-393617.3238848,0.00038051,2]
[425068165,1781447616000,-503.24,0.00038055,60]
[425068168,1781447616000,-503.0,0.00038055,120]
[425068166,1781447616000,-305.15568163,0.00038055,7]
[425068169,1781447616000,-20211.51571961,0.00038055,120]
[425068126,1781447616000,-700.0,0.00038027,8]
[425068170,1781447616000,-152.0,0.00038055,120]
[425068163,1781447616000,-393617.3238848,0.00038051,2]
[425068164,1781447616000,-14355.62307195,0.00038052,2]
[425068167,1781447616000,-203.43545442,0.00038055,7]
[425068172,1781447616000,-154.0,0.00038055,120]
[425068174,1781447616000,-324.0,0.00038055,120]
[425068158,1781447616000,-233.0,0.00038042,120]
[425068184,1781447616000,-207981.57767432,0.00038065,2]
[425068175,1781447616000,-2370.13113656,0.00038055,120]
[425068183,1781447616000,-1500.0,0.00038065,15]
[425068180,1781447616000,-350.0,0.00038065,120]
[425068179,1781447616000,-3189.0,0.00038065,120]
[425068178,1781447616000,-689.0,0.00038065,120]
[425068177,1781447616000,-284.0,0.00038065,120]
[425068176,1781447616000,-5000.0,0.00038056,7]
[425068181,1781447616000,-2000.0,0.00038065,120]
[425068182,1781447616000,-190.0,0.00038065,120]
[425068185,1781447616000,-172677.36261123,0.00038065,2]
[425068187,1781447616000,-459.06200771,0.00038065,2]
[425068186,1781447616000,-125641.69635837,0.00038065,2]
[425068173,1781447616000,-168.0,0.00038055,120]
[425068159,1781447616000,-5000.0,0.00038044,7]
[425068171,1781447616000,-410.0,0.00038055,120]
[425068154,1781447616000,-5343.95471038,0.00038039,2]
[425068130,1781447616000,-700.0,0.00038027,8]
[425068129,1781447616000,-700.0,0.00038027,8]
[425068134,1781447616000,-700.0,0.00038027,8]
[425068127,1781447616000,-700.0,0.00038027,8]
[425068131,1781447616000,-700.0,0.00038027,8]
[425068153,1781447616000,-1734.44,0.00038036,2]
[425068137,1781447616000,-700.0,0.00038027,8]
[425068139,1781447616000,-700.0,0.00038027,8]
[425068140,1781447616000,-700.0,0.00038027,8]
[425068147,1781447616000,-700.0,0.00038027,8]
[425068143,1781447616000,-700.0,0.00038027,8]
[425068145,1781447616000,-700.0,0.00038027,8]
[425068148,1781447616000,-700.0,0.00038027,8]
[425068132,1781447616000,-700.0,0.00038027,8]
[425068141,1781447616000,-700.0,0.00038027,8]
[425068138,1781447616000,-700.0,0.00038027,8]
[425068156,1781447616000,-547.23388446,0.00038042,120]
[425068157,1781447616000,-167.0,0.00038042,120]
[425068152,1781447616000,-5000.0,0.00038032,7]
[425068155,1781447616000,-5343.95471038,0.00038039,2]
[425068160,1781447616000,-393617.3238848,0.00038051,2]
[425068161,1781447616000,-393617.3238848,0.00038051,2]
[425068149,1781447616000,-700.0,0.00038027,8]
[425068150,1781447616000,-700.0,0.00038027,8]
[425068142,1781447616000,-700.0,0.00038027,8]
[425068144,1781447616000,-700.0,0.00038027,8]
[425068151,1781447616000,-544.0,0.00038027,8]
[425068146,1781447616000,-700.0,0.00038027,8]
[425068188,1781447617000,-569019.13928673,0.00038065,25]
[425068189,1781447617000,-500.0,0.00027397,2]
[425068190,1781447617000,-1117.55,0.00029315,8]
[425068191,1781447689000,-432.20359297,0.00015495,2]
[425068192,1781447689000,-97.20704988,0.00015496,2]
[425068193,1781447693000,-129.10332379,0.00015496,2]
[425068194,1781447693000,-413.3304582,0.00015496,2]
[425068199,1781447694000,500.0,0.00030136,120]
[425068198,1781447694000,500.0,0.00030136,120]
[425068197,1781447694000,500.0,0.00030136,120]
[425068196,1781447694000,500.0,0.00030136,120]
[425068195,1781447694000,500.0,0.00030136,120]
[425068202,1781447695000,500.0,0.00030136,120]
[425068200,1781447695000,500.0,0.00030136,120]
[425068201,1781447695000,500.0,0.00030136,120]
[425068203,1781447695000,500.0,0.00030136,120]
[425068205,1781447695000,500.0,0.00030136,120]
[425068206,1781447695000,-86.6695418,0.00015496,2]
[425068207,1781447695000,-139.64083187,0.00015498,2]
[425068204,1781447695000,500.0,0.00030136,120]
[425068208,1781447696000,947.66696821,0.00012277,2]
[425068209,1781447697000,-76.42023048,0.00015498,2]
[425068210,1781447698000,-150.0,0.00015771,2]
[425068211,1781447698000,-205.78336249,0.00017382,2]
[425068212,1781447777000,-542.43378199,0.00016438,2]
[425068213,1781447789000,-363.15928682,0.00016438,2]
[425068214,1781447802000,-152.41693119,0.00016438,2]
[425068215,1781447855000,-500.0,0.00016438,2]
[425068216,1781447868000,-145.8,0.00016438,2]
[425068217,1781447921000,-151.0,0.00016438,2]
[425068218,1781447940000,323.34,0.00027528,120]
[425068219,1781447974000,-151.0,0.00016438,2]
[425068221,1781448028000,-500.0,0.00016438,2]
[425068222,1781448042000,-500.0,0.00016438,2]
[425068223,1781448057000,-12.52,0.00016438,2]
[425068224,1781448170000,151.0,0.00030137,120]
[425068225,1781448189000,151.0,0.00030137,120]
[425068226,1781448220000,-151.0,0.00015318,2]
[425068229,1781448221000,168.0,0.00030137,120]
[425068230,1781448274000,-151.0,0.00015318,2]
[425068231,1781448327000,-151.0,0.00015318,2]
[425068232,1781448329000,611.81,0.00029863,120]
[425068234,1781448344000,-300.0,0.00015598,2]
[425068233,1781448344000,-151.0,0.00015318,2]
[425068235,1781448344000,-134.09050793,0.00015598,2]
[425068236,1781448381000,-465.90949207,0.00015598,2]
[425068237,1781448435000,-294.21663751,0.00015598,2]
[425068240,1781448443000,-500.0,0.000161,2]
[425068241,1781448443000,-284.03532185,0.000161,2]
[425068238,1781448443000,-201.88583069,0.00015778,2]
[425068239,1781448443000,-150.0,0.00015878,2]
[425068242,1781448488000,-215.96467815,0.000161,2]
[425068243,1781448542000,-150.0,0.00016101,2]
[425068244,1781448547000,7553.825411,7.945e-05,2]
[425068245,1781448562000,162.8153,0.00030137,120]
[425068246,1781448582000,465.0,0.000301,120]
[425068247,1781448596000,-500.0,0.00016101,2]
[425068248,1781448619000,404.79197461,0.00027397,120]
[425068249,1781448627000,1000.0,0.0003,120]
[425068280,1781448633000,-152.0,0.00016438,2]
[425068279,1781448633000,-152.0,0.00016438,2]
[425068278,1781448633000,-150.0,0.00016438,2]
[425068283,1781448633000,-151.0,0.00016492,2]
[425068295,1781448633000,-500.0,0.00016514,2]
[425068293,1781448633000,-500.0,0.00016514,2]
[425068297,1781448633000,-500.0,0.00016514,2]
[425068284,1781448633000,-500.0,0.00016514,2]
[425068282,1781448633000,-151.0,0.00016438,2]
[425068285,1781448633000,-171.86295895,0.00016514,2]
[425068286,1781448633000,-500.0,0.00016514,2]
[425068288,1781448633000,-404.39126273,0.00016514,2]
[425068287,1781448633000,-158.41726157,0.00016514,2]
[425068291,1781448633000,-569.09265794,0.00016514,2]
[425068299,1781448633000,-500.0,0.00016514,2]
[425068302,1781448633000,-500.0,0.00016514,2]
[425068307,1781448633000,-500.0,0.00016514,2]
[425068316,1781448633000,-151.0,0.00016653,2]
[425068274,1781448633000,-150.0,0.00016438,2]
[425068289,1781448633000,-500.0,0.00016514,2]
[425068270,1781448633000,-151.0,0.00016438,2]
[425068267,1781448633000,-151.0,0.00016438,2]
[425068277,1781448633000,-151.0,0.00016438,2]
[425068268,1781448633000,-151.0,0.00016438,2]
[425068257,1781448633000,-300.0,0.00016269,2]
[425068259,1781448633000,-512.58905217,0.00016396,2]
[425068262,1781448633000,-214.40072349,0.00016397,2]
[425068256,1781448633000,-216.06106235,0.00016101,2]
[425068260,1781448633000,-300.0,0.00016397,2]
[425068258,1781448633000,-600.0,0.00016269,2]
[425068261,1781448633000,-600.0,0.00016397,2]
[425068311,1781448633000,-500.0,0.00016514,2]
[425068264,1781448633000,-592.0,0.00016438,2]
[425068263,1781448633000,-1143.99,0.00016438,2]
[425068265,1781448633000,-150.0,0.00016438,2]
[425068266,1781448633000,-150.0,0.00016438,2]
[425068269,1781448633000,-150.0,0.00016438,2]
[425068271,1781448633000,-151.0,0.00016438,2]
[425068281,1781448633000,-151.0,0.00016438,2]
[425068276,1781448633000,-151.0,0.00016438,2]
[425068275,1781448633000,-151.0,0.00016438,2]
[425068273,1781448633000,-151.0,0.00016438,2]
[425068272,1781448633000,-151.0,0.00016438,2]
[425068309,1781448633000,-570.56034575,0.00016514,2]
[425068304,1781448633000,-500.0,0.00016514,2]
[425068312,1781448633000,-500.0,0.00016514,2]
[425068339,1781448633000,-250.0,0.00017711,2]
[425068337,1781448633000,-210.98394386,0.00017711,2]
[425068338,1781448633000,-87.10608806,0.00017711,2]
[425068341,1781448633000,-500.0,0.00017799,2]
[425068340,1781448633000,-166.66,0.00017745,2]
[425068343,1781448633000,-500.0,0.00017799,2]
[425068346,1781448633000,-500.0,0.00017799,2]
[425068349,1781448633000,-86.96958959,0.00017856,2]
[425068342,1781448633000,-500.0,0.00017799,2]
[425068335,1781448633000,-300.0,0.00017711,2]
[425068345,1781448633000,-130.01427349,0.00017799,2]
[425068348,1781448633000,-374.94758386,0.00017856,2]
[425068347,1781448633000,-1538.08282655,0.00017856,2]
[425068350,1781448633000,-2619.23956134,0.00017922,2]
[425068306,1781448633000,-500.0,0.00016514,2]
[425068352,1781448633000,-1254.41808677,0.00017922,2]
[425068354,1781448633000,-618.31401655,0.00017922,2]
[425068355,1781448633000,-2822.06359465,0.00017922,2]
[425068351,1781448633000,-3529.42457337,0.00017922,2]
[425068356,1781448633000,-1206.98338037,0.00017922,2]
[425068344,1781448633000,-369.98572651,0.00017799,2]
[425068334,1781448633000,-774.30738054,0.00017711,2]
[425068353,1781448633000,-1168.91636732,0.00017922,2]
[425068336,1781448633000,-600.0,0.00017711,2]
[425068314,1781448633000,-500.0,0.00016514,2]
[425068313,1781448633000,-500.0,0.00016514,2]
[425068315,1781448633000,-500.0,0.00016514,2]
[425068317,1781448633000,-168.44,0.00016712,2]
[425068319,1781448633000,-982.14,0.00016931,2]
[425068323,1781448633000,-9999.99,0.00016936,2]
[425068322,1781448633000,-14850.38,0.00016932,2]
[425068320,1781448633000,-1109.67,0.00016932,2]
[425068321,1781448633000,-4885.01,0.00016932,2]
[425068326,1781448633000,-951.76,0.00017424,2]
[425068324,1781448633000,-166.66,0.00017379,2]
[425068327,1781448633000,-1075.36,0.00017425,2]
[425068318,1781448633000,-1026.27,0.00016931,2]
[425068328,1781448633000,-500.0,0.00017699,2]
[425068329,1781448633000,-2500.0,0.0001771,2]
[425068330,1781448633000,-2500.0,0.00017711,2]
[425068333,1781448633000,-2080.28205722,0.00017711,2]
[425068331,1781448633000,-2500.0,0.00017711,2]
[425068325,1781448633000,-994.53,0.00017424,2]